[Event "Live Chess"]
[Site "Chess.com"]
[Date "2023.09.16"]
[Round "-"]
[White "Giulliajapa007"]
[Black "MateusLuan08"]
[Result "0-1"]
[WhiteElo "994"]
[BlackElo "1565"]
[TimeControl "900+5"]
[EndTime "6:47:17 PDT"]
[Termination "MateusLuan08 venceu por xeque-mate"]

1. e4 {[%clk 0:15:02.3]} 1... e6 {[%clk 0:15:03.6]} 2. d4 {[%clk 0:15:03.9]}
2... d5 {[%clk 0:15:07.6]} 3. e5 {[%clk 0:15:07.4]} 3... c5 {[%clk 0:15:11.7]}
4. c3 {[%clk 0:15:09.7]} 4... Nc6 {[%clk 0:15:14.6]} 5. dxc5 {[%clk 0:15:08.8]}
5... Bxc5 {[%clk 0:15:15.4]} 6. Nf3 {[%clk 0:15:11.6]} 6... Nge7 {[%clk
0:15:16]} 7. b4 {[%clk 0:15:08]} 7... Bb6 {[%clk 0:15:18.7]} 8. Bb5 {[%clk
0:14:43.9]} 8... Bd7 {[%clk 0:15:18.8]} 9. Bxc6 {[%clk 0:14:44.8]} 9... Nxc6
{[%clk 0:15:14.2]} 10. O-O {[%clk 0:14:42.7]} 10... O-O {[%clk 0:15:18.2]} 11.
Nbd2 {[%clk 0:14:38]} 11... Qc7 {[%clk 0:15:04.1]} 12. Ba3 {[%clk 0:14:39.4]}
12... Rfd8 {[%clk 0:14:59.8]} 13. b5 {[%clk 0:14:41.3]} 13... Nxe5 {[%clk
0:15:02.6]} 14. Rc1 {[%clk 0:14:16.2]} 14... Bxb5 {[%clk 0:14:52.1]} 15. Nxe5
{[%clk 0:14:09.9]} 15... Bxf1 {[%clk 0:14:38.2]} 16. Nxf1 {[%clk 0:14:08.6]}
16... Qxe5 {[%clk 0:14:40.2]} 17. Nd2 {[%clk 0:14:00.3]} 17... Rac8 {[%clk
0:14:38]} 18. Nf3 {[%clk 0:14:03.4]} 18... Qf6 {[%clk 0:14:37.3]} 19. Bb2 {[%clk
0:13:42.3]} 19... Ba5 {[%clk 0:14:33.9]} 20. Qd3 {[%clk 0:13:27.7]} 20... a6
{[%clk 0:14:19.5]} 21. c4 {[%clk 0:13:28.2]} 21... Qxb2 {[%clk 0:14:15.4]} 22.
Rd1 {[%clk 0:12:56.3]} 22... Qxa2 {[%clk 0:13:56.4]} 23. h3 {[%clk 0:12:44.9]}
23... Qxc4 {[%clk 0:13:57.4]} 24. Qb1 {[%clk 0:12:33.8]} 24... b5 {[%clk
0:13:27.6]} 25. Ng5 {[%clk 0:12:32.1]} 25... Qc2 {[%clk 0:13:18]} 26. Qa1 {[%clk
0:12:05.9]} 26... Qc3 {[%clk 0:12:56.2]} 27. Qb1 {[%clk 0:11:39.7]} 27... g6
{[%clk 0:12:56.8]} 28. Rd3 {[%clk 0:11:32.2]} 28... Qc1+ {[%clk 0:12:53.6]} 29.
Qxc1 {[%clk 0:11:25.2]} 29... Rxc1+ {[%clk 0:12:58.5]} 30. Kh2 {[%clk
0:11:28.7]} 30... Rdc8 {[%clk 0:13:00.5]} 31. Ra3 {[%clk 0:11:28.6]} 31... Bc7+
{[%clk 0:12:49.3]} 32. g3 {[%clk 0:11:30.5]} 32... a5 {[%clk 0:12:49.7]} 33. Rf3
{[%clk 0:11:28.7]} 33... f5 {[%clk 0:12:47.3]} 34. Nxe6 {[%clk 0:11:29.5]} 34...
b4 {[%clk 0:12:28.4]} 35. Rb3 {[%clk 0:10:46.5]} 35... Rc3 {[%clk 0:12:26.4]}
36. Rxc3 {[%clk 0:10:37.5]} 36... bxc3 {[%clk 0:12:31.3]} 37. Nd4 {[%clk
0:10:39.2]} 37... Bb6 {[%clk 0:12:30.3]} 38. Nb5 {[%clk 0:10:19.9]} 38... c2
{[%clk 0:12:33.2]} 39. Nc3 {[%clk 0:10:20.5]} 39... Rxc3 {[%clk 0:12:35.4]} 40.
Kg2 {[%clk 0:10:23.9]} 40... c1=Q {[%clk 0:12:39.3]} 41. h4 {[%clk 0:10:25.8]}
41... Qe1 {[%clk 0:12:43.4]} 42. g4 {[%clk 0:10:24.5]} 42... Qxf2+ {[%clk
0:12:43.6]} 43. Kh1 {[%clk 0:10:26.8]} 43... Qg1# {[%clk 0:12:43.9]} 0-1

[Event "Live Chess"]
[Site "Chess.com"]
[Date "2023.09.16"]
[Round "-"]
[White "icarohm"]
[Black "maylso"]
[Result "0-1"]
[WhiteElo "1878"]
[BlackElo "1448"]
[TimeControl "900+5"]
[EndTime "6:47:40 PDT"]
[Termination "maylso venceu por xeque-mate"]

1. e4 {[%clk 0:15:03.1]} 1... e5 {[%clk 0:15:01.4]} 2. Nf3 {[%clk 0:15:06]} 2...
Nc6 {[%clk 0:15:05.4]} 3. Bc4 {[%clk 0:15:09.2]} 3... Bc5 {[%clk 0:15:08.9]} 4.
d3 {[%clk 0:15:12.3]} 4... Nf6 {[%clk 0:15:13]} 5. O-O {[%clk 0:15:15.2]} 5...
h6 {[%clk 0:15:16.4]} 6. c3 {[%clk 0:15:19]} 6... O-O {[%clk 0:15:18.3]} 7. Re1
{[%clk 0:15:14.5]} 7... a6 {[%clk 0:15:21.7]} 8. Nbd2 {[%clk 0:15:09.6]} 8...
Na5 {[%clk 0:15:23.8]} 9. Nxe5 {[%clk 0:15:12.3]} 9... d6 {[%clk 0:15:22.4]} 10.
Nef3 {[%clk 0:15:07.9]} 10... Re8 {[%clk 0:15:09.6]} 11. h3 {[%clk 0:15:01]}
11... Nxc4 {[%clk 0:15:10.4]} 12. Nxc4 {[%clk 0:15:02.9]} 12... Be6 {[%clk
0:14:59.3]} 13. Ne3 {[%clk 0:14:57.4]} 13... c6 {[%clk 0:14:02.7]} 14. b4 {[%clk
0:14:50.3]} 14... Ba7 {[%clk 0:13:59.8]} 15. Bb2 {[%clk 0:14:15.2]} 15... Qc7
{[%clk 0:13:58.3]} 16. Qd2 {[%clk 0:13:37.5]} 16... Rac8 {[%clk 0:13:36.1]} 17.
a4 {[%clk 0:13:32.7]} 17... b5 {[%clk 0:11:36.1]} 18. a5 {[%clk 0:13:29.8]}
18... c5 {[%clk 0:11:29.3]} 19. Rac1 {[%clk 0:13:31.6]} 19... d5 {[%clk
0:10:05.9]} 20. exd5 {[%clk 0:13:18.8]} 20... Nxd5 {[%clk 0:09:56.4]} 21. Nxd5
{[%clk 0:13:20.6]} 21... Bxd5 {[%clk 0:09:58.9]} 22. Re3 {[%clk 0:12:36.8]}
22... c4 {[%clk 0:08:49.2]} 23. d4 {[%clk 0:12:29.9]} 23... Bb8 {[%clk
0:08:37.3]} 24. g3 {[%clk 0:12:13.3]} 24... Qd7 {[%clk 0:07:10]} 25. Kh2 {[%clk
0:11:47.8]} 25... Qf5 {[%clk 0:05:44.9]} 26. Nh4 {[%clk 0:11:10.5]} 26... Qf6
{[%clk 0:05:12.6]} 27. Ng2 {[%clk 0:10:36.4]} 27... Qc6 {[%clk 0:04:26.6]} 28.
Nf4 {[%clk 0:09:50.9]} 28... Bxf4 {[%clk 0:03:37.7]} 29. Rxe8+ {[%clk
0:09:49.2]} 29... Rxe8 {[%clk 0:03:23.3]} 30. gxf4 {[%clk 0:09:46.5]} 30... Qf6
{[%clk 0:02:47.6]} 31. Rg1 {[%clk 0:09:27.7]} 31... Bf3 {[%clk 0:02:42.7]} 32.
Re1 {[%clk 0:08:02.7]} 32... Rxe1 {[%clk 0:02:33.3]} 33. Qxe1 {[%clk 0:07:55.5]}
33... Qxf4+ {[%clk 0:02:37.4]} 34. Kg1 {[%clk 0:07:53.3]} 34... Qg5+ {[%clk
0:02:40.5]} 35. Kf1 {[%clk 0:07:52.7]} 35... Qg2# {[%clk 0:02:44.5]} 0-1

[Event "Live Chess"]
[Site "Chess.com"]
[Date "2023.09.16"]
[Round "-"]
[White "zxsimon"]
[Black "InfinityDelas"]
[Result "1-0"]
[WhiteElo "1489"]
[BlackElo "747"]
[TimeControl "900+5"]
[EndTime "6:47:46 PDT"]
[Termination "zxsimon venceu por xeque-mate"]

1. e4 {[%clk 0:15:02.7]} 1... d5 {[%clk 0:15:01.2]} 2. exd5 {[%clk 0:15:06.4]}
2... Qxd5 {[%clk 0:15:05.2]} 3. Nc3 {[%clk 0:15:11]} 3... Qd8 {[%clk 0:15:07.4]}
4. Nf3 {[%clk 0:15:14.8]} 4... Nf6 {[%clk 0:15:11.5]} 5. Bc4 {[%clk 0:15:18.5]}
5... e6 {[%clk 0:15:15.7]} 6. d3 {[%clk 0:15:21.8]} 6... Bd7 {[%clk 0:15:19.9]}
7. Bg5 {[%clk 0:15:25.5]} 7... Be7 {[%clk 0:15:24.1]} 8. O-O {[%clk 0:15:27.8]}
8... Nc6 {[%clk 0:15:27.5]} 9. h3 {[%clk 0:15:29.8]} 9... O-O {[%clk 0:15:30.9]}
10. Qd2 {[%clk 0:15:31.3]} 10... h6 {[%clk 0:15:30.4]} 11. Be3 {[%clk
0:15:32.5]} 11... a6 {[%clk 0:15:31.6]} 12. a3 {[%clk 0:15:34.4]} 12... b5
{[%clk 0:15:35.4]} 13. Ba2 {[%clk 0:15:36.9]} 13... a5 {[%clk 0:15:39.3]} 14.
Nxb5 {[%clk 0:15:38.3]} 14... Nb8 {[%clk 0:15:37.5]} 15. Nbd4 {[%clk 0:15:41.2]}
15... a4 {[%clk 0:15:38.8]} 16. Ne2 {[%clk 0:15:37.3]} 16... Bd6 {[%clk
0:15:25.6]} 17. Bf4 {[%clk 0:15:31.7]} 17... Bxf4 {[%clk 0:15:28.3]} 18. Qxf4
{[%clk 0:15:33.1]} 18... Bc6 {[%clk 0:15:29.7]} 19. Ng3 {[%clk 0:15:27.3]} 19...
Bxf3 {[%clk 0:15:32.9]} 20. Qxf3 {[%clk 0:15:29.7]} 20... Nd5 {[%clk 0:15:33.7]}
21. Bxd5 {[%clk 0:15:32.2]} 21... exd5 {[%clk 0:15:36.1]} 22. Rfe1 {[%clk
0:15:32.9]} 22... Re8 {[%clk 0:15:35.8]} 23. Nf5 {[%clk 0:15:29.2]} 23... g6
{[%clk 0:15:31.9]} 24. Nxh6+ {[%clk 0:15:31.3]} 24... Kg7 {[%clk 0:15:34.8]} 25.
Nxf7 {[%clk 0:15:22]} 25... Qd7 {[%clk 0:15:34.1]} 26. Ne5 {[%clk 0:15:13]}
26... Qd6 {[%clk 0:15:11.3]} 27. Qf7+ {[%clk 0:15:04.4]} 27... Kh6 {[%clk
0:15:11.5]} 28. Ng4+ {[%clk 0:15:00.5]} 28... Kg5 {[%clk 0:15:07.6]} 29. Rxe8
{[%clk 0:15:03.2]} 29... Qc6 {[%clk 0:15:06.4]} 30. Re5+ {[%clk 0:15:04.6]}
30... Kh4 {[%clk 0:15:02]} 31. Qh7# {[%clk 0:15:07.9]} 1-0

[Event "Live Chess"]
[Site "Chess.com"]
[Date "2023.09.16"]
[Round "-"]
[White "Edson_Zarnelli"]
[Black "augustodemoraisrocha"]
[Result "1/2-1/2"]
[WhiteElo "764"]
[BlackElo "1458"]
[TimeControl "900+5"]
[EndTime "6:48:07 PDT"]
[Termination "Empate por repetição"]

1. e4 {[%clk 0:15:04.2]} 1... e5 {[%clk 0:15:04.2]} 2. Nf3 {[%clk 0:15:08.5]}
2... Nc6 {[%clk 0:15:08.2]} 3. Bc4 {[%clk 0:15:12.6]} 3... h6 {[%clk 0:15:11.3]}
4. d4 {[%clk 0:15:08.7]} 4... exd4 {[%clk 0:15:14.7]} 5. Nxd4 {[%clk 0:15:12.7]}
5... Nxd4 {[%clk 0:15:18.5]} 6. Qxd4 {[%clk 0:15:16.6]} 6... Qf6 {[%clk
0:15:22.1]} 7. Qxf6 {[%clk 0:15:10.6]} 7... Nxf6 {[%clk 0:15:27]} 8. Nc3 {[%clk
0:15:12.5]} 8... Bb4 {[%clk 0:15:26.4]} 9. O-O {[%clk 0:15:09.7]} 9... Bxc3
{[%clk 0:15:21.4]} 10. bxc3 {[%clk 0:15:08.1]} 10... O-O {[%clk 0:15:25.7]} 11.
e5 {[%clk 0:15:11.5]} 11... Nh7 {[%clk 0:15:03.9]} 12. Bd3 {[%clk 0:15:12.6]}
12... Re8 {[%clk 0:15:04.3]} 13. Bxh7+ {[%clk 0:15:12.1]} 13... Kxh7 {[%clk
0:15:09.2]} 14. Re1 {[%clk 0:15:11.3]} 14... d6 {[%clk 0:15:11.6]} 15. f4 {[%clk
0:15:15.2]} 15... dxe5 {[%clk 0:15:11.4]} 16. fxe5 {[%clk 0:15:18.4]} 16... f6
{[%clk 0:15:15]} 17. Bf4 {[%clk 0:15:19.3]} 17... fxe5 {[%clk 0:15:13.5]} 18.
Bxe5 {[%clk 0:15:22.9]} 18... c6 {[%clk 0:14:59.7]} 19. h4 {[%clk 0:15:05.7]}
19... Bf5 {[%clk 0:14:58.2]} 20. Rac1 {[%clk 0:14:55.1]} 20... Re6 {[%clk
0:14:58.3]} 21. Kf2 {[%clk 0:14:44.7]} 21... Rae8 {[%clk 0:14:54.5]} 22. Bd4
{[%clk 0:14:22]} 22... Rxe1 {[%clk 0:14:51.2]} 23. Rxe1 {[%clk 0:14:25.6]} 23...
Rxe1 {[%clk 0:14:55.4]} 24. Kxe1 {[%clk 0:14:29.4]} 24... a6 {[%clk 0:14:57.8]}
25. Kd2 {[%clk 0:14:25.7]} 25... Be4 {[%clk 0:15:00.2]} 26. g3 {[%clk
0:14:24.5]} 26... g5 {[%clk 0:14:56.3]} 27. hxg5 {[%clk 0:14:27.5]} 27... hxg5
{[%clk 0:15:01.2]} 28. c4 {[%clk 0:14:31.2]} 28... Kh6 {[%clk 0:15:05.4]} 29. c3
{[%clk 0:14:35]} 29... Kh5 {[%clk 0:15:02.4]} 30. Ke3 {[%clk 0:14:38.7]} 30...
Bb1 {[%clk 0:15:06.3]} 31. a4 {[%clk 0:14:29.2]} 31... Kg4 {[%clk 0:14:27]} 32.
Kf2 {[%clk 0:14:23]} 32... b5 {[%clk 0:14:10.4]} 33. cxb5 {[%clk 0:14:08.9]}
33... cxb5 {[%clk 0:14:12.4]} 34. a5 {[%clk 0:14:07]} 34... Ba2 {[%clk
0:14:10.2]} 35. Kg2 {[%clk 0:13:54.3]} 35... Bd5+ {[%clk 0:14:08.4]} 36. Kf2
{[%clk 0:13:56.2]} 36... Kf5 {[%clk 0:14:10.9]} 37. Kg1 {[%clk 0:13:44.3]} 37...
Ke4 {[%clk 0:14:09.4]} 38. Kh2 {[%clk 0:13:43.5]} 38... g4 {[%clk 0:14:08.6]}
39. Kg2 {[%clk 0:13:30.8]} 39... Kd3+ {[%clk 0:14:10.7]} 40. Kf2 {[%clk
0:13:31.5]} 40... Kc4 {[%clk 0:14:15]} 41. Ke3 {[%clk 0:13:23]} 41... Kb3 {[%clk
0:14:16.9]} 42. Kf4 {[%clk 0:13:18.9]} 42... Bf3 {[%clk 0:14:13.3]} 43. Ke5
{[%clk 0:13:09.7]} 43... Ka4 {[%clk 0:14:14.3]} 44. Bb6 {[%clk 0:13:12.7]} 44...
Kb3 {[%clk 0:14:16]} 45. Bd4 {[%clk 0:13:12.1]} 45... Ka4 {[%clk 0:14:18.6]} 46.
Bb6 {[%clk 0:13:15.9]} 46... Kb3 {[%clk 0:14:22.5]} 47. Bd4 {[%clk 0:13:19.6]}
1/2-1/2

[Event "Live Chess"]
[Site "Chess.com"]
[Date "2023.09.16"]
[Round "-"]
[White "xadrecarloso"]
[Black "lucasportolelis"]
[Result "0-1"]
[WhiteElo "937"]
[BlackElo "1688"]
[TimeControl "900+5"]
[EndTime "6:48:23 PDT"]
[Termination "lucasportolelis venceu por xeque-mate"]

1. d4 {[%clk 0:15:03.4]} 1... d5 {[%clk 0:15:03.2]} 2. Bf4 {[%clk 0:15:06.7]}
2... e6 {[%clk 0:15:04.1]} 3. e3 {[%clk 0:15:10.8]} 3... f5 {[%clk 0:15:06.8]}
4. Nf3 {[%clk 0:15:14.6]} 4... Nf6 {[%clk 0:15:04.4]} 5. Bd3 {[%clk 0:15:15.5]}
5... Be7 {[%clk 0:15:05.5]} 6. Nbd2 {[%clk 0:15:16.9]} 6... O-O {[%clk
0:14:58.3]} 7. Ne5 {[%clk 0:15:07.8]} 7... Nbd7 {[%clk 0:15:00.1]} 8. Ndf3
{[%clk 0:15:07.1]} 8... Ne4 {[%clk 0:14:47.7]} 9. O-O {[%clk 0:14:09]} 9... c6
{[%clk 0:14:41.7]} 10. Qe2 {[%clk 0:13:36.7]} 10... g5 {[%clk 0:14:33.3]} 11.
Nxd7 {[%clk 0:12:30.5]} 11... Bxd7 {[%clk 0:14:31.6]} 12. Be5 {[%clk 0:12:30.2]}
12... Qe8 {[%clk 0:14:02.1]} 13. Rfe1 {[%clk 0:11:44.9]} 13... g4 {[%clk
0:13:18.7]} 14. Nd2 {[%clk 0:11:41.4]} 14... Qg6 {[%clk 0:12:58.8]} 15. Nxe4
{[%clk 0:11:16.9]} 15... fxe4 {[%clk 0:12:58.6]} 16. Bxe4 {[%clk 0:10:28]} 16...
Qxe4 {[%clk 0:13:01.4]} 17. f3 {[%clk 0:10:20.1]} 17... gxf3 {[%clk 0:13:04.1]}
18. gxf3 {[%clk 0:10:22.9]} 18... Qxf3 {[%clk 0:12:57.9]} 19. Qxf3 {[%clk
0:10:18.9]} 19... Rxf3 {[%clk 0:13:02.5]} 20. Kh1 {[%clk 0:10:10.5]} 20... h6
{[%clk 0:12:24.4]} 21. Rg1+ {[%clk 0:10:10.7]} 21... Bg5 {[%clk 0:12:22.8]} 22.
h4 {[%clk 0:10:04.8]} 22... Rh3+ {[%clk 0:12:24.9]} 23. Kg2 {[%clk 0:10:03.2]}
23... Rxh4 {[%clk 0:12:27]} 24. Kf2 {[%clk 0:10:04.5]} 24... Rf8+ {[%clk
0:12:23.1]} 25. Ke2 {[%clk 0:10:07.6]} 25... Re4 {[%clk 0:12:19]} 26. Raf1
{[%clk 0:09:48.1]} 26... Rxe3+ {[%clk 0:12:14.8]} 27. Kd2 {[%clk 0:09:49.6]}
27... Rxe5+ {[%clk 0:11:59.4]} 28. Kd3 {[%clk 0:09:46.6]} 28... Re3+ {[%clk
0:11:55.2]} 29. Kd2 {[%clk 0:09:45.5]} 29... Ref3+ {[%clk 0:11:58]} 30. Ke2
{[%clk 0:09:45.6]} 30... Rxf1 {[%clk 0:12:01.4]} 31. Rxf1 {[%clk 0:09:49.2]}
31... Rxf1 {[%clk 0:12:06.1]} 32. Kxf1 {[%clk 0:09:46.8]} 32... b6 {[%clk
0:12:07.9]} 33. Ke2 {[%clk 0:09:49.8]} 33... c5 {[%clk 0:12:12]} 34. dxc5 {[%clk
0:09:53.2]} 34... bxc5 {[%clk 0:12:16.3]} 35. Kd3 {[%clk 0:09:57.2]} 35... e5
{[%clk 0:12:20.7]} 36. c3 {[%clk 0:10:01]} 36... h5 {[%clk 0:12:22.4]} 37. b4
{[%clk 0:10:02.5]} 37... c4+ {[%clk 0:12:22.2]} 38. Ke2 {[%clk 0:10:04.7]} 38...
h4 {[%clk 0:12:25.8]} 39. b5 {[%clk 0:10:05.6]} 39... Bxb5 {[%clk 0:12:28.5]}
40. a4 {[%clk 0:10:05.9]} 40... Bc6 {[%clk 0:12:27.6]} 41. Kf3 {[%clk
0:10:08.6]} 41... h3 {[%clk 0:12:20.1]} 42. a5 {[%clk 0:10:11]} 42... h2 {[%clk
0:12:21.5]} 43. Kg2 {[%clk 0:10:10.5]} 43... Bf4 {[%clk 0:12:23.9]} 44. a6
{[%clk 0:10:12.4]} 44... d4+ {[%clk 0:12:26.6]} 45. Kf2 {[%clk 0:10:13.4]} 45...
h1=Q {[%clk 0:12:29.5]} 46. cxd4 {[%clk 0:10:14.5]} 46... Qg2+ {[%clk
0:12:29.5]} 47. Ke1 {[%clk 0:10:16.6]} 47... Qd2+ {[%clk 0:12:29]} 48. Kf1
{[%clk 0:10:19.6]} 48... Bg2+ {[%clk 0:12:31.5]} 49. Kg1 {[%clk 0:10:17.8]}
49... Bg3 {[%clk 0:12:21.2]} 50. dxe5 {[%clk 0:10:16.8]} 50... Qf2# {[%clk
0:12:25.6]} 0-1

[Event "Live Chess"]
[Site "Chess.com"]
[Date "2023.09.16"]
[Round "-"]
[White "migu345"]
[Black "Gustavinh13"]
[Result "0-1"]
[WhiteElo "1004"]
[BlackElo "1931"]
[TimeControl "900+5"]
[EndTime "6:48:30 PDT"]
[Termination "Gustavinh13 venceu por desistência"]

1. e4 {[%clk 0:15:02.7]} 1... c6 {[%clk 0:14:57.3]} 2. Nf3 {[%clk 0:15:06.8]}
2... d5 {[%clk 0:15:01.3]} 3. exd5 {[%clk 0:15:10.8]} 3... cxd5 {[%clk
0:15:06.2]} 4. d4 {[%clk 0:15:14.8]} 4... Nc6 {[%clk 0:15:05.4]} 5. c3 {[%clk
0:15:16.3]} 5... Bg4 {[%clk 0:15:08.8]} 6. Bb5 {[%clk 0:15:17.7]} 6... Nf6
{[%clk 0:15:09.7]} 7. h3 {[%clk 0:15:19.6]} 7... Bh5 {[%clk 0:15:13.1]} 8. Qd3
{[%clk 0:15:22.8]} 8... Bg6 {[%clk 0:15:14.1]} 9. Qe3 {[%clk 0:15:22.1]} 9... a6
{[%clk 0:15:14.3]} 10. Bxc6+ {[%clk 0:15:19.7]} 10... bxc6 {[%clk 0:15:19.2]}
11. Ne5 {[%clk 0:15:23.3]} 11... Qc7 {[%clk 0:15:15.7]} 12. Nxg6 {[%clk
0:15:25.6]} 12... hxg6 {[%clk 0:15:20.6]} 13. Nd2 {[%clk 0:15:24.5]} 13... e6
{[%clk 0:15:22.3]} 14. Nf3 {[%clk 0:15:27.8]} 14... Bd6 {[%clk 0:15:17.3]} 15.
Ne5 {[%clk 0:15:20.4]} 15... Ne4 {[%clk 0:14:42.3]} 16. f3 {[%clk 0:15:15.8]}
16... Ng3 {[%clk 0:13:55.6]} 17. Rg1 {[%clk 0:15:14.2]} 17... Nf5 {[%clk
0:13:56.7]} 18. Qg5 {[%clk 0:15:12.9]} 18... Bxe5 {[%clk 0:13:51.5]} 19. dxe5
{[%clk 0:15:12.9]} 19... Qxe5+ {[%clk 0:13:56.4]} 20. Kf1 {[%clk 0:15:13]} 20...
Rh5 {[%clk 0:12:32.2]} 21. Bf4 {[%clk 0:15:01.5]} 21... Ne3+ {[%clk 0:12:03.4]}
22. Kf2 {[%clk 0:14:58.3]} 22... Rxg5 {[%clk 0:12:07.2]} 23. Bxe5 {[%clk
0:14:57.6]} 23... Rxe5 {[%clk 0:12:09.8]} 24. Rge1 {[%clk 0:14:56.5]} 24... Nc4
{[%clk 0:12:04.2]} 25. b3 {[%clk 0:14:56.5]} 25... Rxe1 {[%clk 0:12:05.6]} 26.
Rxe1 {[%clk 0:14:58.3]} 26... Nd6 {[%clk 0:12:04.3]} 27. g4 {[%clk 0:14:59.5]}
27... a5 {[%clk 0:11:58.6]} 28. h4 {[%clk 0:15:02.4]} 28... Kd7 {[%clk
0:12:01.4]} 29. h5 {[%clk 0:15:05.8]} 29... gxh5 {[%clk 0:12:05.4]} 30. gxh5
{[%clk 0:15:10.7]} 30... Rh8 {[%clk 0:12:08.5]} 31. Rg1 {[%clk 0:15:13.3]} 31...
Nf5 {[%clk 0:12:10.4]} 32. Rh1 {[%clk 0:15:09.7]} 32... g6 {[%clk 0:12:13.9]}
0-1

[Event "Live Chess"]
[Site "Chess.com"]
[Date "2023.09.16"]
[Round "-"]
[White "fernanndodod"]
[Black "Abofado"]
[Result "1-0"]
[WhiteElo "1980"]
[BlackElo "592"]
[TimeControl "900+5"]
[EndTime "6:48:42 PDT"]
[Termination "fernanndodod venceu por xeque-mate"]

1. e4 {[%clk 0:15:03.9]} 1... c6 {[%clk 0:15:02.7]} 2. d4 {[%clk 0:15:07.3]}
2... d5 {[%clk 0:15:06.1]} 3. Nd2 {[%clk 0:15:11.7]} 3... dxe4 {[%clk
0:15:09.9]} 4. Nxe4 {[%clk 0:15:16.6]} 4... c5 {[%clk 0:15:14.1]} 5. Nf3 {[%clk
0:15:14.4]} 5... e5 {[%clk 0:15:18]} 6. c3 {[%clk 0:15:14.6]} 6... cxd4 {[%clk
0:15:21.1]} 7. cxd4 {[%clk 0:15:17.5]} 7... f5 {[%clk 0:15:23.4]} 8. Bb5+ {[%clk
0:15:17.5]} 8... Bd7 {[%clk 0:15:25.7]} 9. Bxd7+ {[%clk 0:15:20.1]} 9... Qxd7
{[%clk 0:15:29]} 10. Nc3 {[%clk 0:15:22.4]} 10... exd4 {[%clk 0:15:32]} 11. Qxd4
{[%clk 0:15:25.4]} 11... Qe7+ {[%clk 0:15:30.4]} 12. Qe3 {[%clk 0:15:21.6]}
12... f4 {[%clk 0:15:27.4]} 13. Qxe7+ {[%clk 0:15:24.1]} 13... Bxe7 {[%clk
0:15:32.3]} 14. Bxf4 {[%clk 0:15:28.4]} 14... Nf6 {[%clk 0:15:32.5]} 15. Bxb8
{[%clk 0:15:31]} 15... Rxb8 {[%clk 0:15:35.9]} 16. O-O-O {[%clk 0:15:35.3]}
16... O-O {[%clk 0:15:37.8]} 17. Ne5 {[%clk 0:15:31.2]} 17... a5 {[%clk
0:15:32]} 18. f3 {[%clk 0:15:31.2]} 18... Rbc8 {[%clk 0:15:30]} 19. Nd7 {[%clk
0:15:31.3]} 19... Rfd8 {[%clk 0:15:31.9]} 20. Nxf6+ {[%clk 0:15:27.6]} 20...
Bxf6 {[%clk 0:15:29.9]} 21. Rxd8+ {[%clk 0:15:30.1]} 21... Rxd8 {[%clk
0:15:34.8]} 22. Rd1 {[%clk 0:15:34.1]} 22... Bg5+ {[%clk 0:15:37.4]} 23. Kc2
{[%clk 0:15:36.8]} 23... Re8 {[%clk 0:15:37.6]} 24. Ne4 {[%clk 0:15:32.3]} 24...
Rc8+ {[%clk 0:15:36.9]} 25. Kb3 {[%clk 0:15:34.6]} 25... a4+ {[%clk 0:15:36.8]}
26. Kxa4 {[%clk 0:15:33.6]} 26... Be7 {[%clk 0:15:34]} 27. Kb3 {[%clk
0:15:33.9]} 27... b5 {[%clk 0:15:29.3]} 28. Nd6 {[%clk 0:15:34.1]} 28... Rc6
{[%clk 0:15:29.3]} 29. Nxb5 {[%clk 0:15:35.2]} 29... Rb6 {[%clk 0:15:31.9]} 30.
a4 {[%clk 0:15:37.6]} 30... Kf7 {[%clk 0:15:33]} 31. Kc4 {[%clk 0:15:37.5]}
31... Rc6+ {[%clk 0:15:29.5]} 32. Kd5 {[%clk 0:15:33.1]} 32... Rc5+ {[%clk
0:15:27.8]} 33. Kd4 {[%clk 0:15:34]} 33... Kf6 {[%clk 0:15:28.9]} 34. Re1 {[%clk
0:15:28.9]} 34... Rc8 {[%clk 0:15:25.3]} 35. Nc3 {[%clk 0:15:08.4]} 35... Bc5+
{[%clk 0:15:24.7]} 36. Kd5 {[%clk 0:15:11.8]} 36... Bf2 {[%clk 0:15:23.2]} 37.
Ne4+ {[%clk 0:15:13]} 37... Kf5 {[%clk 0:15:24.9]} 38. Nxf2 {[%clk 0:15:15]}
38... Rd8+ {[%clk 0:15:16.5]} 39. Kc4 {[%clk 0:15:16.1]} 39... Rc8+ {[%clk
0:15:17.4]} 40. Kb3 {[%clk 0:15:18.9]} 40... Rb8+ {[%clk 0:15:19.4]} 41. Ka3
{[%clk 0:15:22.9]} 41... g5 {[%clk 0:15:17.8]} 42. b4 {[%clk 0:15:25.7]} 42...
Rc8 {[%clk 0:15:19.4]} 43. Kb3 {[%clk 0:15:25.6]} 43... Kf4 {[%clk 0:15:11]} 44.
Re4+ {[%clk 0:15:25.9]} 44... Kf5 {[%clk 0:15:14]} 45. a5 {[%clk 0:15:26.9]}
45... Kf6 {[%clk 0:15:11.6]} 46. b5 {[%clk 0:15:29]} 46... Rb8 {[%clk
0:15:10.5]} 47. Kb4 {[%clk 0:15:32.5]} 47... Kf7 {[%clk 0:15:13.5]} 48. b6
{[%clk 0:15:36.2]} 48... Kf6 {[%clk 0:15:17.1]} 49. Kb5 {[%clk 0:15:40]} 49...
Kf7 {[%clk 0:15:20]} 50. a6 {[%clk 0:15:44.4]} 50... Rd8 {[%clk 0:15:22.7]} 51.
a7 {[%clk 0:15:47.8]} 51... Rd5+ {[%clk 0:15:26.3]} 52. Ka6 {[%clk 0:15:51.8]}
52... Rd8 {[%clk 0:15:23.5]} 53. b7 {[%clk 0:15:55.5]} 53... Rd6+ {[%clk
0:15:24.7]} 54. Kb5 {[%clk 0:15:58.9]} 54... g4 {[%clk 0:15:18.9]} 55. Nxg4
{[%clk 0:15:59.9]} 55... Rd5+ {[%clk 0:15:14.1]} 56. Kc6 {[%clk 0:16:02.6]}
56... Ra5 {[%clk 0:15:15.8]} 57. a8=Q {[%clk 0:16:04.8]} 57... Rxa8 {[%clk
0:15:12.8]} 58. bxa8=Q {[%clk 0:16:09.7]} 58... Kg6 {[%clk 0:15:15.3]} 59. Qg8+
{[%clk 0:16:10.7]} 59... Kf5 {[%clk 0:15:17.9]} 60. Re5+ {[%clk 0:16:12.8]}
60... Kf4 {[%clk 0:15:21.5]} 61. Qf7# {[%clk 0:16:14.8]} 1-0